[Event "Early-Titled-Tuesday-Blitz-July-09-2024"]
[Site "Chess.com"]
[Date "2024.07.09"]
[Round "6"]
[White "BardArtem"]
[Black "AlbusSevresPotter"]
[Result "1-0"]
[WhiteElo "2820"]
[BlackElo "2607"]
[TimeControl "180+1"]
[EndTime "9:09:44 PDT"]
[Termination "BardArtem won on time"]

1. e4 {[%clk 0:03:00.9]} 1... c5 {[%clk 0:02:46.2]} 2. Nf3 {[%clk 0:03:00.6]}
2... d6 {[%clk 0:02:46.6]} 3. Nc3 {[%clk 0:02:59.6]} 3... e5 {[%clk 0:02:45.9]}
4. Bc4 {[%clk 0:02:54.8]} 4... Be6 {[%clk 0:02:44.4]} 5. d3 {[%clk 0:02:49.6]}
5... Nc6 {[%clk 0:02:43.9]} 6. Ng5 {[%clk 0:02:47.6]} 6... Bxc4 {[%clk
0:02:39.8]} 7. dxc4 {[%clk 0:02:48.5]} 7... Be7 {[%clk 0:02:39.5]} 8. Qh5 {[%clk
0:02:44.9]} 8... g6 {[%clk 0:02:27.8]} 9. Qg4 {[%clk 0:02:44.3]} 9... Nd4 {[%clk
0:01:58.4]} 10. Kd1 {[%clk 0:02:38.1]} 10... h5 {[%clk 0:01:53.7]} 11. Qg3
{[%clk 0:02:32.8]} 11... h4 {[%clk 0:01:53.3]} 12. Qe3 {[%clk 0:02:32]} 12...
Nf6 {[%clk 0:01:41.7]} 13. h3 {[%clk 0:02:24.6]} 13... Qd7 {[%clk 0:01:38.4]}
14. Nf3 {[%clk 0:02:17.2]} 14... O-O-O {[%clk 0:01:33.5]} 15. Qd3 {[%clk
0:02:03.3]} 15... Ne8 {[%clk 0:01:20.6]} 16. Nd5 {[%clk 0:01:59.5]} 16... Nc7
{[%clk 0:01:18.8]} 17. Nxc7 {[%clk 0:01:51.9]} 17... Qxc7 {[%clk 0:01:17.7]} 18.
c3 {[%clk 0:01:52.1]} 18... Ne6 {[%clk 0:01:13.8]} 19. Kc2 {[%clk 0:01:50.7]}
19... Rhf8 {[%clk 0:01:11.7]} 20. Bh6 {[%clk 0:01:49.1]} 20... Rh8 {[%clk
0:01:09.5]} 21. Be3 {[%clk 0:01:49.8]} 21... Qc6 {[%clk 0:01:08.5]} 22. Rhd1
{[%clk 0:01:33.8]} 22... Rdf8 {[%clk 0:00:56]} 23. b4 {[%clk 0:01:16.7]} 23...
f5 {[%clk 0:00:46.8]} 24. b5 {[%clk 0:00:58.1]} 24... fxe4 {[%clk 0:00:38.5]}
25. Qf1 {[%clk 0:00:38]} 25... Qc7 {[%clk 0:00:28]} 26. Nd2 {[%clk 0:00:36.6]}
26... Qa5 {[%clk 0:00:25.1]} 27. Nxe4 {[%clk 0:00:31.9]} 27... Qa4+ {[%clk
0:00:24.8]} 28. Kb2 {[%clk 0:00:32.1]} 28... Kc7 {[%clk 0:00:16]} 29. Qd3 {[%clk
0:00:17.6]} 29... Nf4 {[%clk 0:00:16.5]} 30. Bxf4 {[%clk 0:00:12.3]} 30... Rxf4
{[%clk 0:00:17.4]} 31. f3 {[%clk 0:00:12.2]} 31... Rhf8 {[%clk 0:00:17.9]} 32.
Nd2 {[%clk 0:00:04.9]} 32... a6 {[%clk 0:00:15.8]} 33. Qc2 {[%clk 0:00:03.8]}
33... Qa5 {[%clk 0:00:14.1]} 34. a4 {[%clk 0:00:03.7]} 34... Kb8 {[%clk
0:00:05.8]} 35. Ne4 {[%clk 0:00:03.7]} 35... Qc7 {[%clk 0:00:04.3]} 36. Rd5
{[%clk 0:00:03.8]} 36... Ka7 {[%clk 0:00:04.3]} 37. a5 {[%clk 0:00:04.2]} 37...
Kb8 {[%clk 0:00:04.2]} 38. b6 {[%clk 0:00:04.8]} 38... Qc6 {[%clk 0:00:04.3]}
39. Rad1 {[%clk 0:00:05.7]} 39... Rd8 {[%clk 0:00:04.6]} 40. Qd3 {[%clk
0:00:06.4]} 40... Qa4 {[%clk 0:00:04.8]} 41. Ra1 {[%clk 0:00:05.1]} 41... Qc6
{[%clk 0:00:05.1]} 42. Nxc5 {[%clk 0:00:03.6]} 42... dxc5 {[%clk 0:00:01.2]} 43.
Rxd8+ {[%clk 0:00:03.6]} 43... Bxd8 {[%clk 0:00:02.1]} 44. Qxd8+ {[%clk
0:00:04.3]} 44... Qc8 {[%clk 0:00:02.7]} 45. Rd1 {[%clk 0:00:03.5]} 45... Rxc4
{[%clk 0:00:02.3]} 46. Qd6+ {[%clk 0:00:03.8]} 46... Ka8 {[%clk 0:00:02.7]} 47.
Qe7 {[%clk 0:00:04.2]} 47... Rd4 {[%clk 0:00:02.6]} 48. cxd4 {[%clk 0:00:05.1]}
48... cxd4 {[%clk 0:00:03.5]} 49. Rc1 {[%clk 0:00:04.9]} 49... Qg8 {[%clk
0:00:03.2]} 50. Qc7 {[%clk 0:00:05.5]} 1-0

[Event "Early-Titled-Tuesday-Blitz-July-09-2024"]
[Site "Chess.com"]
[Date "2024.07.09"]
[Round "6"]
[White "carloseduar100"]
[Black "HelenaWalker2912"]
[Result "1/2-1/2"]
[WhiteElo "2260"]
[BlackElo "2490"]
[TimeControl "180+1"]
[EndTime "9:09:45 PDT"]
[Termination "Game drawn - insufficient material"]

1. d4 {[%clk 0:02:59.8]} 1... d5 {[%clk 0:03:00.1]} 2. c3 {[%clk 0:02:59.5]}
2... Nf6 {[%clk 0:03:00]} 3. Bg5 {[%clk 0:02:58.8]} 3... Ne4 {[%clk 0:02:59]} 4.
h4 {[%clk 0:02:58.1]} 4... c5 {[%clk 0:02:53.8]} 5. e3 {[%clk 0:02:57.2]} 5...
Nc6 {[%clk 0:02:53.9]} 6. Nd2 {[%clk 0:02:57.1]} 6... Bf5 {[%clk 0:02:48]} 7.
Ngf3 {[%clk 0:02:56.8]} 7... e6 {[%clk 0:02:47.5]} 8. Bb5 {[%clk 0:02:54.4]}
8... Qb6 {[%clk 0:02:46.2]} 9. Qa4 {[%clk 0:02:53.4]} 9... a6 {[%clk 0:02:45.5]}
10. Bxc6+ {[%clk 0:02:52.4]} 10... Qxc6 {[%clk 0:02:45.9]} 11. Qxc6+ {[%clk
0:02:51]} 11... bxc6 {[%clk 0:02:46.8]} 12. Nxe4 {[%clk 0:02:47.5]} 12... Bxe4
{[%clk 0:02:40.5]} 13. Bf4 {[%clk 0:02:47.9]} 13... cxd4 {[%clk 0:02:36.1]} 14.
cxd4 {[%clk 0:02:47.4]} 14... Bb4+ {[%clk 0:02:35.2]} 15. Ke2 {[%clk 0:02:47.2]}
15... f6 {[%clk 0:02:20.5]} 16. a3 {[%clk 0:02:46.9]} 16... Be7 {[%clk
0:02:19.3]} 17. Rhc1 {[%clk 0:02:47.2]} 17... Kd7 {[%clk 0:02:18.6]} 18. b4
{[%clk 0:02:47.2]} 18... a5 {[%clk 0:02:17.3]} 19. b5 {[%clk 0:02:47.5]} 19...
cxb5 {[%clk 0:02:14.5]} 20. Rc7+ {[%clk 0:02:46.3]} 20... Kd8 {[%clk 0:01:57.6]}
21. Rb7 {[%clk 0:02:46.5]} 21... Rc8 {[%clk 0:01:20.2]} 22. Rxb5 {[%clk
0:02:41.1]} 22... Ke8 {[%clk 0:01:15.8]} 23. Rxa5 {[%clk 0:02:37.8]} 23... Rc2+
{[%clk 0:01:16.4]} 24. Nd2 {[%clk 0:02:37.9]} 24... Kf7 {[%clk 0:01:16.8]} 25.
f3 {[%clk 0:02:34.6]} 25... Bg6 {[%clk 0:01:17]} 26. Ra7 {[%clk 0:02:32.1]}
26... Rd8 {[%clk 0:01:13.4]} 27. a4 {[%clk 0:02:26.5]} 27... Kf8 {[%clk
0:01:13.7]} 28. Rxe7 {[%clk 0:02:04.1]} 28... Kxe7 {[%clk 0:01:12]} 29. a5
{[%clk 0:02:05]} 29... Ra8 {[%clk 0:01:04]} 30. g4 {[%clk 0:02:02.5]} 30... Be8
{[%clk 0:00:58.2]} 31. Kd3 {[%clk 0:02:01.8]} 31... Rb2 {[%clk 0:00:57.3]} 32.
e4 {[%clk 0:01:58]} 32... Rb4 {[%clk 0:00:50.3]} 33. Kc3 {[%clk 0:01:50.2]}
33... Ra4 {[%clk 0:00:50.2]} 34. Rxa4 {[%clk 0:01:49.2]} 34... Bxa4 {[%clk
0:00:51.1]} 35. Kb4 {[%clk 0:01:49.1]} 35... Bc2 {[%clk 0:00:45.2]} 36. exd5
{[%clk 0:01:48]} 36... exd5 {[%clk 0:00:45.2]} 37. Bc7 {[%clk 0:01:43.8]} 37...
Kd7 {[%clk 0:00:44.4]} 38. Bb6 {[%clk 0:01:44]} 38... Kc6 {[%clk 0:00:44.7]} 39.
f4 {[%clk 0:01:41.7]} 39... Re8 {[%clk 0:00:40.5]} 40. g5 {[%clk 0:01:41.9]}
40... Re2 {[%clk 0:00:40.2]} 41. Kc3 {[%clk 0:01:40.2]} 41... Bf5 {[%clk
0:00:37.6]} 42. h5 {[%clk 0:01:34.7]} 42... Rf2 {[%clk 0:00:36.3]} 43. h6 {[%clk
0:01:34]} 43... gxh6 {[%clk 0:00:34.9]} 44. gxh6 {[%clk 0:01:24.3]} 44... Rxf4
{[%clk 0:00:33.6]} 45. Bd8 {[%clk 0:01:25]} 45... Bc8 {[%clk 0:00:32.1]} 46. Nb3
{[%clk 0:01:22.5]} 46... Rf3+ {[%clk 0:00:32]} 47. Kb4 {[%clk 0:01:21.4]} 47...
f5 {[%clk 0:00:30.7]} 48. Nc5 {[%clk 0:01:21.4]} 48... f4 {[%clk 0:00:30.6]} 49.
a6 {[%clk 0:01:17.5]} 49... Bxa6 {[%clk 0:00:31]} 50. Nxa6 {[%clk 0:01:17.2]}
50... Rf1 {[%clk 0:00:31.7]} 51. Kc3 {[%clk 0:01:15.2]} 51... f3 {[%clk
0:00:31.2]} 52. Kd2 {[%clk 0:01:13.8]} 52... Kb5 {[%clk 0:00:31.5]} 53. Nc7+
{[%clk 0:01:13.1]} 53... Kc4 {[%clk 0:00:32.1]} 54. Bf6 {[%clk 0:01:10.3]} 54...
Rh1 {[%clk 0:00:28.7]} 55. Ke3 {[%clk 0:01:06.7]} 55... Rxh6 {[%clk 0:00:28.3]}
56. Be5 {[%clk 0:01:07.2]} 56... Rh3 {[%clk 0:00:26]} 57. Ne6 {[%clk 0:01:07.6]}
57... h5 {[%clk 0:00:15.1]} 58. Nf4 {[%clk 0:01:08.1]} 58... Rh1 {[%clk
0:00:13.5]} 59. Kxf3 {[%clk 0:01:08]} 59... Kc3 {[%clk 0:00:13.7]} 60. Nxd5+
{[%clk 0:01:04.9]} 60... Kd2 {[%clk 0:00:13.9]} 61. Nf4 {[%clk 0:01:03.5]} 61...
Rf1+ {[%clk 0:00:12]} 62. Kg3 {[%clk 0:01:02.2]} 62... Re1 {[%clk 0:00:11.5]}
63. Kh4 {[%clk 0:01:00.4]} 63... Kc3 {[%clk 0:00:08.9]} 64. Kxh5 {[%clk
0:00:57.8]} 64... Kc4 {[%clk 0:00:09.5]} 65. Kg5 {[%clk 0:00:57.6]} 65... Rd1
{[%clk 0:00:09.1]} 66. Ne2 {[%clk 0:00:49.8]} 66... Rd2 {[%clk 0:00:07.4]} 67.
Nf4 {[%clk 0:00:44.7]} 67... Rxd4 {[%clk 0:00:07]} 68. Ng6 {[%clk 0:00:41.2]}
68... Rd1 {[%clk 0:00:05.7]} 69. Kf6 {[%clk 0:00:41.3]} 69... Rf1+ {[%clk
0:00:05.5]} 70. Bf4 {[%clk 0:00:38.1]} 70... Rxf4+ {[%clk 0:00:03.8]} 71. Nxf4
{[%clk 0:00:37.9]} 1/2-1/2

[Event "Early-Titled-Tuesday-Blitz-July-09-2024"]
[Site "Chess.com"]
[Date "2024.07.09"]
[Round "6"]
[White "KubaGepard"]
[Black "coalescenet"]
[Result "0-1"]
[WhiteElo "2633"]
[BlackElo "2384"]
[TimeControl "180+1"]
[EndTime "9:09:46 PDT"]
[Termination "coalescenet won by checkmate"]

1. e4 {[%clk 0:03:00.9]} 1... c6 {[%clk 0:03:00]} 2. d4 {[%clk 0:02:50.4]} 2...
d5 {[%clk 0:03:00.5]} 3. Nd2 {[%clk 0:02:47.3]} 3... dxe4 {[%clk 0:03:00.5]} 4.
Nxe4 {[%clk 0:02:47.8]} 4... Bf5 {[%clk 0:03:00.8]} 5. Ng3 {[%clk 0:02:45.8]}
5... Bg6 {[%clk 0:03:01.3]} 6. N1e2 {[%clk 0:02:45.7]} 6... e6 {[%clk
0:03:00.6]} 7. Nf4 {[%clk 0:02:44.8]} 7... Bd6 {[%clk 0:03:01]} 8. h4 {[%clk
0:02:42.8]} 8... Qc7 {[%clk 0:02:59.6]} 9. Ngh5 {[%clk 0:02:26]} 9... Kf8 {[%clk
0:02:59]} 10. c3 {[%clk 0:02:22.6]} 10... Nd7 {[%clk 0:02:57.6]} 11. Qf3 {[%clk
0:02:15.2]} 11... Ngf6 {[%clk 0:02:57.6]} 12. Nxf6 {[%clk 0:02:09.2]} 12... Nxf6
{[%clk 0:02:54.7]} 13. Nxg6+ {[%clk 0:02:08]} 13... hxg6 {[%clk 0:02:54]} 14.
Bd3 {[%clk 0:02:03.9]} 14... Re8 {[%clk 0:02:32.2]} 15. Bg5 {[%clk 0:01:57.8]}
15... e5 {[%clk 0:02:25]} 16. dxe5 {[%clk 0:01:45.4]} 16... Rxe5+ {[%clk
0:02:21.2]} 17. Kf1 {[%clk 0:01:41.8]} 17... Rxg5 {[%clk 0:02:17.2]} 18. Rd1
{[%clk 0:01:32.4]} 18... Re5 {[%clk 0:01:56.9]} 19. g3 {[%clk 0:01:31.4]} 19...
Ke7 {[%clk 0:01:42]} 20. Kg2 {[%clk 0:01:30.4]} 20... Re8 {[%clk 0:01:39.4]} 21.
Bc4 {[%clk 0:01:27.2]} 21... Kf8 {[%clk 0:01:35.8]} 22. Rd4 {[%clk 0:01:23.8]}
22... Re1 {[%clk 0:01:25.5]} 23. Rxe1 {[%clk 0:01:18.2]} 23... Rxe1 {[%clk
0:01:26.4]} 24. Qd3 {[%clk 0:01:15.7]} 24... Be7 {[%clk 0:01:15.4]} 25. a4
{[%clk 0:01:03.4]} 25... c5 {[%clk 0:01:14.8]} 26. Rf4 {[%clk 0:01:02]} 26...
Bd6 {[%clk 0:01:01.4]} 27. Rf3 {[%clk 0:00:59.5]} 27... Re7 {[%clk 0:00:59.9]}
28. Qd2 {[%clk 0:00:53.7]} 28... Qc6 {[%clk 0:00:56.6]} 29. b3 {[%clk
0:00:49.3]} 29... a6 {[%clk 0:00:51.2]} 30. Qd3 {[%clk 0:00:48.6]} 30... Bc7
{[%clk 0:00:47.7]} 31. Kf1 {[%clk 0:00:35.8]} 31... Ng4 {[%clk 0:00:44]} 32. Bd5
{[%clk 0:00:30.6]} 32... Qd6 {[%clk 0:00:36.3]} 33. Rf4 {[%clk 0:00:29.9]} 33...
Ne5 {[%clk 0:00:30.2]} 34. Qd1 {[%clk 0:00:29.8]} 34... Qd7 {[%clk 0:00:26.8]}
35. c4 {[%clk 0:00:27]} 35... Qh3+ {[%clk 0:00:23.4]} 36. Kg1 {[%clk 0:00:26.8]}
36... Nd3 {[%clk 0:00:20.3]} 37. Re4 {[%clk 0:00:22.9]} 37... Rxe4 {[%clk
0:00:13.6]} 38. Bxe4 {[%clk 0:00:21.9]} 38... Nxf2 {[%clk 0:00:13.7]} 39. Kxf2
{[%clk 0:00:18.5]} 39... Bxg3+ {[%clk 0:00:13.7]} 40. Ke2 {[%clk 0:00:17.3]}
40... Bxh4 {[%clk 0:00:11.2]} 41. Qd6+ {[%clk 0:00:15.8]} 41... Kg8 {[%clk
0:00:11.8]} 42. Qb8+ {[%clk 0:00:15.4]} 42... Kh7 {[%clk 0:00:12.4]} 43. Qxb7
{[%clk 0:00:15.4]} 43... Qe6 {[%clk 0:00:12]} 44. Kd3 {[%clk 0:00:15]} 44... f5
{[%clk 0:00:11.2]} 45. Bd5 {[%clk 0:00:14.7]} 45... Qe5 {[%clk 0:00:10.5]} 46.
Qc8 {[%clk 0:00:14.6]} 46... Qd4+ {[%clk 0:00:10.6]} 47. Ke2 {[%clk 0:00:14.9]}
47... Qe5+ {[%clk 0:00:09.6]} 48. Kd3 {[%clk 0:00:15]} 48... Kh6 {[%clk
0:00:10]} 49. Qh8+ {[%clk 0:00:14.3]} 49... Kg5 {[%clk 0:00:10.7]} 50. Qd8+
{[%clk 0:00:13.8]} 50... Kg4 {[%clk 0:00:09.8]} 51. Qf8 {[%clk 0:00:13.8]} 51...
Qd4+ {[%clk 0:00:07.7]} 52. Ke2 {[%clk 0:00:13.9]} 52... Bg5 {[%clk 0:00:06.8]}
53. Bf3+ {[%clk 0:00:12.8]} 53... Kg3 {[%clk 0:00:05.7]} 54. Qb8+ {[%clk
0:00:04.3]} 54... Bf4 {[%clk 0:00:04.6]} 55. Qb7 {[%clk 0:00:03]} 55... Qd2+
{[%clk 0:00:04.1]} 56. Kf1 {[%clk 0:00:03.3]} 56... Qf2# {[%clk 0:00:05]} 0-1

[Event "Early-Titled-Tuesday-Blitz-July-09-2024"]
[Site "Chess.com"]
[Date "2024.07.09"]
[Round "6"]
[White "Sasha_Solovev_777"]
[Black "EpicWarrior2015"]
[Result "1-0"]
[WhiteElo "2311"]
[BlackElo "2414"]
[TimeControl "180+1"]
[EndTime "9:09:46 PDT"]
[Termination "Sasha_Solovev_777 won on time"]

1. e4 {[%clk 0:03:00.9]} 1... c5 {[%clk 0:03:00.2]} 2. Nf3 {[%clk 0:03:00.2]}
2... Nf6 {[%clk 0:03:00.4]} 3. e5 {[%clk 0:02:57.6]} 3... Nd5 {[%clk 0:03:00]}
4. Nc3 {[%clk 0:02:58.1]} 4... Nxc3 {[%clk 0:03:00.1]} 5. bxc3 {[%clk
0:02:58.2]} 5... Nc6 {[%clk 0:03:00.6]} 6. d4 {[%clk 0:02:47.9]} 6... cxd4
{[%clk 0:02:53.8]} 7. cxd4 {[%clk 0:02:48.8]} 7... e6 {[%clk 0:02:53.8]} 8. Bd3
{[%clk 0:02:39.6]} 8... d5 {[%clk 0:02:53.3]} 9. O-O {[%clk 0:02:38.8]} 9... Be7
{[%clk 0:02:43.4]} 10. a4 {[%clk 0:02:30.9]} 10... b6 {[%clk 0:02:42.5]} 11. Ba3
{[%clk 0:02:23.2]} 11... Bb7 {[%clk 0:02:36.2]} 12. h4 {[%clk 0:02:05.2]} 12...
Rc8 {[%clk 0:02:27.4]} 13. h5 {[%clk 0:02:03.4]} 13... h6 {[%clk 0:02:25.5]} 14.
Bb5 {[%clk 0:02:00.5]} 14... O-O {[%clk 0:01:50.9]} 15. Bc1 {[%clk 0:01:54.5]}
15... Na5 {[%clk 0:01:41.6]} 16. Bd3 {[%clk 0:01:39.7]} 16... Nc4 {[%clk
0:01:29.8]} 17. Rb1 {[%clk 0:01:39.6]} 17... Qd7 {[%clk 0:01:23.3]} 18. Bf4
{[%clk 0:01:37.2]} 18... Qxa4 {[%clk 0:01:16.5]} 19. Qc1 {[%clk 0:01:27]} 19...
Ba3 {[%clk 0:01:11.5]} 20. Qe1 {[%clk 0:01:15.8]} 20... Qc6 {[%clk 0:01:01.4]}
21. Rb3 {[%clk 0:01:11]} 21... Be7 {[%clk 0:01:00]} 22. Qc1 {[%clk 0:01:10.3]}
22... Na5 {[%clk 0:00:44.6]} 23. Rb1 {[%clk 0:00:58.1]} 23... Qc3 {[%clk
0:00:26.6]} 24. Bxh6 {[%clk 0:00:53]} 24... Qxd3 {[%clk 0:00:26.6]} 25. cxd3
{[%clk 0:00:52]} 25... Rxc1 {[%clk 0:00:26.8]} 26. Bxc1 {[%clk 0:00:52.8]} 26...
Ba6 {[%clk 0:00:27.3]} 27. Rd1 {[%clk 0:00:50.4]} 27... Nc6 {[%clk 0:00:21.2]}
28. Be3 {[%clk 0:00:45.2]} 28... Rc8 {[%clk 0:00:20.4]} 29. Rbc1 {[%clk
0:00:32.3]} 29... Kf8 {[%clk 0:00:19.9]} 30. h6 {[%clk 0:00:28.3]} 30... gxh6
{[%clk 0:00:19.8]} 31. Bxh6+ {[%clk 0:00:28.1]} 31... Ke8 {[%clk 0:00:20.5]} 32.
g3 {[%clk 0:00:19.1]} 32... Kd7 {[%clk 0:00:20.8]} 33. Be3 {[%clk 0:00:19.3]}
33... Rg8 {[%clk 0:00:19.2]} 34. Kg2 {[%clk 0:00:19.6]} 34... Nb4 {[%clk
0:00:18]} 35. Ne1 {[%clk 0:00:18]} 35... Bb5 {[%clk 0:00:16.7]} 36. Ra1 {[%clk
0:00:17.3]} 36... a5 {[%clk 0:00:16.1]} 37. Bd2 {[%clk 0:00:17.4]} 37... Nc6
{[%clk 0:00:11.3]} 38. Bc3 {[%clk 0:00:17.4]} 38... Bb4 {[%clk 0:00:09.7]} 39.
Bxb4 {[%clk 0:00:16.6]} 39... Nxb4 {[%clk 0:00:10.6]} 40. Rab1 {[%clk
0:00:14.7]} 40... Ba4 {[%clk 0:00:09.9]} 41. Rd2 {[%clk 0:00:13.9]} 41... Rc8
{[%clk 0:00:09.5]} 42. f4 {[%clk 0:00:12.8]} 42... Bb5 {[%clk 0:00:09.2]} 43. g4
{[%clk 0:00:12.1]} 43... Ba6 {[%clk 0:00:07.2]} 44. f5 {[%clk 0:00:12.4]} 44...
Rb8 {[%clk 0:00:06.9]} 45. f6 {[%clk 0:00:10.4]} 45... Nc6 {[%clk 0:00:06.9]}
46. Nf3 {[%clk 0:00:10]} 46... b5 {[%clk 0:00:07]} 47. g5 {[%clk 0:00:10.2]}
47... b4 {[%clk 0:00:07]} 48. g6 {[%clk 0:00:08.2]} 48... fxg6 {[%clk
0:00:05.7]} 49. Rh1 {[%clk 0:00:08.3]} 49... b3 {[%clk 0:00:05.1]} 50. Rh7+
{[%clk 0:00:07.9]} 50... Kc8 {[%clk 0:00:04.7]} 51. f7 {[%clk 0:00:06.4]} 51...
Kb7 {[%clk 0:00:01.2]} 52. f8=Q+ {[%clk 0:00:06.3]} 52... Kb6 {[%clk 0:00:01.6]}
53. Qa3 {[%clk 0:00:03.8]} 1-0

[Event "Early-Titled-Tuesday-Blitz-July-09-2024"]
[Site "Chess.com"]
[Date "2024.07.09"]
[Round "6"]
[White "MatthewG-p4p"]
[Black "BeanScreen"]
[Result "1/2-1/2"]
[WhiteElo "2910"]
[BlackElo "2683"]
[TimeControl "180+1"]
[EndTime "9:09:47 PDT"]
[Termination "Game drawn - insufficient material"]

1. f4 {[%clk 0:03:00.9]} 1... d5 {[%clk 0:02:59.9]} 2. Nf3 {[%clk 0:03:00.1]}
2... Nf6 {[%clk 0:03:00.3]} 3. g3 {[%clk 0:03:00.2]} 3... g6 {[%clk 0:03:00.3]}
4. Bg2 {[%clk 0:03:00.8]} 4... Bg7 {[%clk 0:03:00.7]} 5. O-O {[%clk 0:03:01.7]}
5... O-O {[%clk 0:03:00.4]} 6. d3 {[%clk 0:03:02.6]} 6... c5 {[%clk 0:02:58.8]}
7. Nc3 {[%clk 0:03:02.9]} 7... d4 {[%clk 0:02:52.6]} 8. Na4 {[%clk 0:03:02.6]}
8... Nfd7 {[%clk 0:02:50.5]} 9. c4 {[%clk 0:03:01.8]} 9... Nc6 {[%clk
0:02:49.2]} 10. a3 {[%clk 0:03:01.9]} 10... Qc7 {[%clk 0:02:39.9]} 11. Rb1
{[%clk 0:03:02]} 11... a5 {[%clk 0:02:39.1]} 12. e4 {[%clk 0:03:02.2]} 12...
dxe3 {[%clk 0:02:20.1]} 13. Bxe3 {[%clk 0:03:02]} 13... b6 {[%clk 0:02:10.1]}
14. Nc3 {[%clk 0:03:00.7]} 14... Bb7 {[%clk 0:01:49.5]} 15. Qe2 {[%clk 0:02:58]}
15... e6 {[%clk 0:01:41]} 16. Nb5 {[%clk 0:02:51.8]} 16... Qb8 {[%clk 0:01:41]}
17. Rbd1 {[%clk 0:02:46.7]} 17... Ne7 {[%clk 0:01:30.9]} 18. Bf2 {[%clk
0:02:23.3]} 18... Nf5 {[%clk 0:01:26.8]} 19. Rfe1 {[%clk 0:01:51.5]} 19... Bc6
{[%clk 0:01:24.9]} 20. Ng5 {[%clk 0:01:45.9]} 20... Bxg2 {[%clk 0:01:23.1]} 21.
Kxg2 {[%clk 0:01:46.8]} 21... Qb7+ {[%clk 0:01:19.2]} 22. Qe4 {[%clk 0:01:47]}
22... Rab8 {[%clk 0:01:13.3]} 23. g4 {[%clk 0:01:42.3]} 23... Ne7 {[%clk
0:00:54.2]} 24. Qxb7 {[%clk 0:01:19.9]} 24... Rxb7 {[%clk 0:00:55.1]} 25. d4
{[%clk 0:01:20]} 25... cxd4 {[%clk 0:00:53.3]} 26. Bxd4 {[%clk 0:01:18.7]} 26...
Bxd4 {[%clk 0:00:35.3]} 27. Rxd4 {[%clk 0:01:19]} 27... Nc5 {[%clk 0:00:23.9]}
28. Nf3 {[%clk 0:00:58.6]} 28... Rd7 {[%clk 0:00:17.9]} 29. Red1 {[%clk
0:00:54.8]} 29... Rfd8 {[%clk 0:00:16.5]} 30. Kf2 {[%clk 0:00:29.8]} 30... Rxd4
{[%clk 0:00:14.8]} 31. Rxd4 {[%clk 0:00:30.5]} 31... Rxd4 {[%clk 0:00:14.7]} 32.
Nfxd4 {[%clk 0:00:28.5]} 32... Nd3+ {[%clk 0:00:15.4]} 33. Ke3 {[%clk
0:00:21.4]} 33... Nxb2 {[%clk 0:00:16.3]} 34. Nd6 {[%clk 0:00:22.1]} 34... h5
{[%clk 0:00:11.5]} 35. h3 {[%clk 0:00:21.9]} 35... hxg4 {[%clk 0:00:11.7]} 36.
hxg4 {[%clk 0:00:22.8]} 36... Na4 {[%clk 0:00:11.1]} 37. Nb3 {[%clk 0:00:22.4]}
37... Nc6 {[%clk 0:00:09.5]} 38. Nc8 {[%clk 0:00:19.6]} 38... Kf8 {[%clk
0:00:09.2]} 39. Ke4 {[%clk 0:00:16.3]} 39... Ke8 {[%clk 0:00:09.1]} 40. Nd6+
{[%clk 0:00:15.5]} 40... Ke7 {[%clk 0:00:09.6]} 41. Nb5 {[%clk 0:00:15.9]} 41...
f5+ {[%clk 0:00:07.9]} 42. gxf5 {[%clk 0:00:16.3]} 42... gxf5+ {[%clk
0:00:08.3]} 43. Ke3 {[%clk 0:00:16.9]} 43... e5 {[%clk 0:00:07.8]} 44. fxe5
{[%clk 0:00:07.4]} 44... Nxe5 {[%clk 0:00:08.7]} 45. Kf4 {[%clk 0:00:08.2]}
45... Nxc4 {[%clk 0:00:08]} 46. Kxf5 {[%clk 0:00:08.4]} 46... Kd7 {[%clk
0:00:07.7]} 47. Ke4 {[%clk 0:00:08]} 47... Kc6 {[%clk 0:00:07.4]} 48. N5d4+
{[%clk 0:00:08.6]} 48... Kd6 {[%clk 0:00:07]} 49. Nb5+ {[%clk 0:00:09.1]} 49...
Kc6 {[%clk 0:00:06.3]} 50. N5d4+ {[%clk 0:00:09.8]} 50... Kb7 {[%clk 0:00:06.5]}
51. Nc2 {[%clk 0:00:09.1]} 51... Ka6 {[%clk 0:00:05]} 52. Kd5 {[%clk 0:00:08.4]}
52... Ncb2 {[%clk 0:00:04.9]} 53. Kd4 {[%clk 0:00:08.1]} 53... Nc5 {[%clk
0:00:04.2]} 54. Nxc5+ {[%clk 0:00:08.1]} 54... bxc5+ {[%clk 0:00:05.1]} 55. Kxc5
{[%clk 0:00:09]} 55... a4 {[%clk 0:00:05.2]} 56. Nb4+ {[%clk 0:00:07.3]} 56...
Ka5 {[%clk 0:00:05.4]} 57. Kd4 {[%clk 0:00:08.2]} 57... Kb5 {[%clk 0:00:05.1]}
58. Nd5 {[%clk 0:00:07.5]} 58... Ka5 {[%clk 0:00:03.9]} 59. Nc3 {[%clk
0:00:06.9]} 59... Ka6 {[%clk 0:00:03.2]} 60. Ke3 {[%clk 0:00:05.7]} 60... Nc4+
{[%clk 0:00:02.7]} 61. Kd4 {[%clk 0:00:06.4]} 61... Nxa3 {[%clk 0:00:02.9]} 62.
Nxa4 {[%clk 0:00:07.1]} 1/2-1/2